[Event "MČR juniorů a juniorek v rapid šachu 2023"]
[Site "Czech Republic"]
[Date "2023.09.23"]
[Round "2.6"]
[White "Strnadova, Monika"]
[Black "Dolensky, Filip"]
[Result "0-1"]
[TimeControl "20 min + 5 sec per move"]
[WhiteFideId "23701668"]
[BlackFideId "399000"]
[WhiteElo "1728"]
[BlackElo "1942"]

1. d4 {[%clk 00:20:08]} {[%emt 00:00:01]} Nf6 {[%clk 00:20:06]} {[%emt
00:00:04]} 2. Bf4 {[%clk 00:20:11]} {[%emt 00:00:02]} d6 {[%clk 00:20:05]}
{[%emt 00:00:05]} 3. e3 {[%clk 00:20:10]} {[%emt 00:00:07]} g6 {[%clk
00:20:07]} {[%emt 00:00:03]} 4. Nf3 {[%clk 00:20:05]} {[%emt 00:00:10]} Bg7
{[%clk 00:20:11]} {[%emt 00:00:02]} 5. Be2 {[%clk 00:20:08]} {[%emt 00:00:02]}
O-O {[%clk 00:20:13]} {[%emt 00:00:03]} 6. Nbd2 {[%clk 00:19:56]} {[%emt
00:00:17]} Nfd7 {[%clk 00:20:15]} {[%emt 00:00:03]} 7. O-O {[%clk 00:18:56]}
{[%emt 00:01:05]} Nc6 {[%clk 00:20:18]} {[%emt 00:00:02]} 8. c4 {[%clk
00:18:29]} {[%emt 00:00:32]} e5 {[%clk 00:20:15]} {[%emt 00:00:09]} 9. d5
{[%clk 00:17:56]} {[%emt 00:00:37]} Ne7 {[%clk 00:19:02]} {[%emt 00:01:17]} 10.
Bg3 {[%clk 00:17:28]} {[%emt 00:00:33]} f5 {[%clk 00:18:35]} {[%emt 00:00:33]}
11. Nb3 {[%clk 00:16:10]} {[%emt 00:01:23]} b6 {[%clk 00:18:21]} {[%emt
00:00:19]} 12. Qc2 {[%clk 00:15:46]} {[%emt 00:00:29]} h6 {[%clk 00:18:15]}
{[%emt 00:00:10]} 13. h3 {[%clk 00:15:30]} {[%emt 00:00:22]} Nf6 {[%clk
00:18:04]} {[%emt 00:00:16]} 14. Bh2 {[%clk 00:14:34]} {[%emt 00:01:01]} g5
{[%clk 00:17:46]} {[%emt 00:00:23]} 15. Nfd2 {[%clk 00:13:44]} {[%emt
00:00:55]} f4 {[%clk 00:16:06]} {[%emt 00:01:46]} 16. exf4 {[%clk 00:13:39]}
{[%emt 00:00:09]} gxf4 {[%clk 00:15:51]} {[%emt 00:00:20]} 17. Bd3 {[%clk
00:13:05]} {[%emt 00:00:39]} a5 {[%clk 00:15:16]} {[%emt 00:00:40]} 18. Nf3
{[%clk 00:11:51]} {[%emt 00:01:19]} Qe8 {[%clk 00:14:21]} {[%emt 00:01:00]} 19.
Rfe1 {[%clk 00:10:36]} {[%emt 00:01:20]} Qf7 {[%clk 00:12:24]} {[%emt
00:02:02]} 20. Nbd2 {[%clk 00:09:53]} {[%emt 00:00:49]} Bd7 {[%clk 00:11:48]}
{[%emt 00:00:41]} 21. Nh4 {[%clk 00:08:10]} {[%emt 00:01:47]} Ne8 {[%clk
00:08:33]} {[%emt 00:03:20]} 22. Ndf3 {[%clk 00:04:24]} {[%emt 00:03:51]} Nf5
{[%clk 00:07:26]} {[%emt 00:01:12]} 23. Nxf5 {[%clk 00:03:37]} {[%emt
00:00:51]} Bxf5 {[%clk 00:07:30]} {[%emt 00:00:02]} 24. Nh4 {[%clk 00:02:39]}
{[%emt 00:01:02]} Bxd3 {[%clk 00:07:20]} {[%emt 00:00:15]} 25. Qxd3 {[%clk
00:02:42]} {[%emt 00:00:02]} Nf6 {[%clk 00:06:31]} {[%emt 00:00:55]} 26. Qg6
{[%clk 00:02:13]} {[%emt 00:00:34]} Qxg6 {[%clk 00:06:17]} {[%emt 00:00:19]} 27.
Nxg6 {[%clk 00:02:16]} {[%emt 00:00:02]} Rf7 {[%clk 00:06:13]} {[%emt
00:00:08]} 28. g3 {[%clk 00:02:17]} {[%emt 00:00:05]} fxg3 {[%clk 00:05:55]}
{[%emt 00:00:24]} 29. Bxg3 {[%clk 00:02:19]} {[%emt 00:00:02]} Kh7 {[%clk
00:05:51]} {[%emt 00:00:08]} 30. Nh4 {[%clk 00:02:18]} {[%emt 00:00:07]} Nh5
{[%clk 00:05:50]} {[%emt 00:00:06]} 31. Kg2 {[%clk 00:01:53]} {[%emt 00:00:29]}
Raf8 {[%clk 00:05:51]} {[%emt 00:00:05]} 32. Re2 {[%clk 00:01:57]} Nf4+ {[%clk
00:05:49]} {[%emt 00:00:08]} 33. Bxf4 {[%clk 00:01:58]} {[%emt 00:00:03]} Rxf4
{[%clk 00:05:53]} {[%emt 00:00:02]} 34. Kg3 {[%clk 00:01:47]} {[%emt 00:00:16]}
Rxc4 {[%clk 00:04:44]} {[%emt 00:01:13]} 35. Ng2 {[%clk 00:01:43]} {[%emt
00:00:09]} Bf6 {[%clk 00:04:22]} {[%emt 00:00:27]} 36. Ne3 {[%clk 00:01:38]}
{[%emt 00:00:11]} Bh4+ {[%clk 00:04:01]} {[%emt 00:00:26]} 37. Kg2 {[%clk
00:01:42]} Rcf4 {[%clk 00:03:59]} {[%emt 00:00:07]} 38. Rf1 {[%clk 00:01:45]}
{[%emt 00:00:02]} h5 {[%clk 00:03:47]} {[%emt 00:00:17]} 39. Rc2 {[%clk
00:01:33]} {[%emt 00:00:17]} R8f7 {[%clk 00:03:46]} {[%emt 00:00:05]} 40. Kg1
{[%clk 00:00:54]} {[%emt 00:00:44]} Bg5 {[%clk 00:03:14]} {[%emt 00:00:38]} 41.
Kg2 {[%clk 00:00:29]} {[%emt 00:00:31]} R4f6 {[%clk 00:03:15]} {[%emt
00:00:03]} 42. Nd1 {[%clk 00:00:22]} {[%emt 00:00:12]} Bf4 {[%clk 00:03:19]}
{[%emt 00:00:01]} 43. Nc3 {[%clk 00:00:17]} {[%emt 00:00:10]} Rg6+ {[%clk
00:03:22]} {[%emt 00:00:02]} 44. Kh1 {[%clk 00:00:21]} Rfg7 {[%clk 00:02:46]}
{[%emt 00:00:42]} 45. Ne2 {[%clk 00:00:23]} {[%emt 00:00:04]} Bh6 {[%clk
00:02:36]} {[%emt 00:00:15]} 46. Ng3 {[%clk 00:00:21]} {[%emt 00:00:07]} Rf7
{[%clk 00:02:14]} {[%emt 00:00:27]} 47. Nxh5 {[%clk 00:00:17]} {[%emt
00:00:08]} Rg5 {[%clk 00:02:17]} {[%emt 00:00:03]} 48. Ng3 {[%clk 00:00:17]}
{[%emt 00:00:04]} Rxg3 {[%clk 00:02:19]} {[%emt 00:00:03]} 0-1

[Event "MČR juniorů a juniorek v rapid šachu 2023"]
[Site "Czech Republic"]
[Date "2023.09.23"]
[Round "2.7"]
[White "Novotny, Dominik"]
[Black "Hurtik, Matej"]
[Result "1-0"]
[TimeControl "20 min + 5 sec per move"]
[WhiteFideId "23755601"]
[BlackFideId "397997"]
[WhiteElo "1707"]
[BlackElo "1930"]

1. e4 {[%clk 00:20:08]} {[%emt 00:00:01]} d5 {[%clk 00:20:08]} {[%emt
00:00:02]} 2. exd5 {[%clk 00:20:11]} {[%emt 00:00:02]} Qxd5 {[%clk 00:20:11]}
{[%emt 00:00:03]} 3. Nc3 {[%clk 00:20:14]} Qa5 {[%clk 00:20:15]} 4. Bc4 {[%clk
00:20:17]} {[%emt 00:00:03]} Nf6 {[%clk 00:20:18]} {[%emt 00:00:02]} 5. d3
{[%clk 00:20:19]} {[%emt 00:00:03]} Bg4 {[%clk 00:20:16]} {[%emt 00:00:07]} 6.
f3 {[%clk 00:20:10]} {[%emt 00:00:14]} Bf5 {[%clk 00:20:07]} {[%emt 00:00:13]}
7. Bd2 {[%clk 00:20:12]} {[%emt 00:00:04]} c6 {[%clk 00:19:54]} {[%emt
00:00:18]} 8. Qe2 {[%clk 00:19:56]} {[%emt 00:00:21]} Nbd7 {[%clk 00:19:12]}
{[%emt 00:00:47]} 9. g4 {[%clk 00:19:26]} {[%emt 00:00:35]} Bg6 {[%clk
00:19:09]} {[%emt 00:00:08]} 10. f4 {[%clk 00:19:02]} {[%emt 00:00:29]} h6
{[%clk 00:16:45]} {[%emt 00:02:29]} 11. f5 {[%clk 00:18:59]} {[%emt 00:00:08]}
Bh7 {[%clk 00:16:47]} {[%emt 00:00:02]} 12. Nb5 {[%clk 00:19:03]} {[%emt
00:00:02]} Qxb5 {[%clk 00:13:37]} {[%emt 00:03:15]} 13. Bxb5 cxb5 {[%clk
00:13:41]} 14. h3 {[%clk 00:17:51]} {[%emt 00:01:18]} O-O-O {[%clk 00:13:20]}
{[%emt 00:00:27]} 15. O-O-O {[%clk 00:17:35]} {[%emt 00:00:21]} Nd5 {[%clk
00:11:48]} {[%emt 00:01:36]} 16. Nf3 {[%clk 00:17:25]} {[%emt 00:00:16]} Bg8
{[%clk 00:08:33]} {[%emt 00:03:20]} 17. Ne5 {[%clk 00:16:39]} {[%emt 00:00:51]}
N7b6 {[%clk 00:07:33]} {[%emt 00:01:05]} 18. Ba5 {[%clk 00:15:07]} {[%emt
00:01:37]} Re8 {[%clk 00:05:32]} {[%emt 00:02:06]} 19. Bxb6 {[%clk 00:14:57]}
{[%emt 00:00:16]} Nxb6 {[%clk 00:05:24]} {[%emt 00:00:12]} 20. d4 {[%clk
00:14:59]} {[%emt 00:00:03]} a6 {[%clk 00:04:41]} {[%emt 00:00:49]} 21. d5
{[%clk 00:14:57]} {[%emt 00:00:07]} Rd8 {[%clk 00:04:11]} {[%emt 00:00:34]} 22.
Qe3 {[%clk 00:13:57]} {[%emt 00:01:05]} Rd6 {[%clk 00:04:02]} {[%emt 00:00:14]}
23. Rd3 {[%clk 00:13:25]} {[%emt 00:00:36]} Kb8 {[%clk 00:01:52]} {[%emt
00:02:16]} 24. Rhd1 {[%clk 00:11:21]} {[%emt 00:02:09]} g6 {[%clk 00:01:37]}
{[%emt 00:00:19]} 25. Nc6+ {[%clk 00:11:01]} {[%emt 00:00:25]} Kc7 {[%clk
00:00:30]} {[%emt 00:01:12]} 26. Nxe7 {[%clk 00:10:54]} {[%emt 00:00:12]} Nc4
{[%clk 00:00:07]} {[%emt 00:00:28]} 27. Qc5+ {[%clk 00:10:27]} {[%emt
00:00:32]} Kd7 {[%clk 00:00:11]} {[%emt 00:00:02]} 28. Qc8+ {[%clk 00:10:19]}
{[%emt 00:00:12]} Kxe7 {[%clk 00:00:14]} {[%emt 00:00:02]} 29. Re1+ {[%clk
00:10:23]} {[%emt 00:00:02]} Kf6 {[%clk 00:00:11]} {[%emt 00:00:08]} 30. Qxf8
{[%clk 00:10:25]} {[%emt 00:00:02]} gxf5 {[%clk 00:00:06]} {[%emt 00:00:11]} 31.
Qe7+ {[%clk 00:10:18]} {[%emt 00:00:11]} Kg7 {[%clk 00:00:08]} {[%emt
00:00:03]} 32. gxf5 {[%clk 00:10:21]} {[%emt 00:00:03]} 1-0

[Event "MČR juniorů a juniorek v rapid šachu 2023"]
[Site "Czech Republic"]
[Date "2023.09.23"]
[Round "2.8"]
[White "Cibulka, Josef"]
[Black "Stastna, Martina"]
[Result "1-0"]
[TimeControl "20 min + 5 sec per move"]
[WhiteFideId "23708042"]
[BlackFideId "385123"]
[WhiteElo "1922"]
[BlackElo "1725"]

1. e4 {[%clk 00:20:07]} {[%emt 00:00:02]} e5 {[%clk 00:20:09]} {[%emt
00:00:02]} 2. Nf3 {[%clk 00:20:10]} {[%emt 00:00:02]} Nc6 {[%clk 00:20:12]}
{[%emt 00:00:01]} 3. Nc3 {[%clk 00:20:13]} {[%emt 00:00:02]} Nf6 {[%clk
00:20:13]} {[%emt 00:00:05]} 4. Bb5 {[%clk 00:20:17]} {[%emt 00:00:01]} Bb4
{[%clk 00:19:44]} {[%emt 00:00:33]} 5. O-O {[%clk 00:20:18]} {[%emt 00:00:04]}
d6 {[%clk 00:19:47]} {[%emt 00:00:02]} 6. d4 {[%clk 00:20:19]} {[%emt
00:00:04]} O-O {[%clk 00:19:39]} {[%emt 00:00:13]} 7. Bxc6 {[%clk 00:20:16]}
{[%emt 00:00:09]} bxc6 {[%clk 00:19:28]} {[%emt 00:00:16]} 8. dxe5 {[%clk
00:20:18]} {[%emt 00:00:03]} Bxc3 {[%clk 00:18:30]} {[%emt 00:01:02]} 9. bxc3
{[%clk 00:19:33]} {[%emt 00:00:51]} Nxe4 {[%clk 00:18:02]} {[%emt 00:00:33]} 10.
Qd4 {[%clk 00:18:54]} {[%emt 00:00:43]} d5 {[%clk 00:16:51]} {[%emt 00:01:16]}
11. c4 {[%clk 00:18:39]} {[%emt 00:00:20]} Ba6 {[%clk 00:15:35]} {[%emt
00:01:20]} 12. Re1 {[%clk 00:17:52]} {[%emt 00:00:53]} Bxc4 {[%clk 00:14:38]}
{[%emt 00:01:03]} 13. Ba3 {[%clk 00:17:09]} {[%emt 00:00:47]} Re8 {[%clk
00:13:54]} {[%emt 00:00:48]} 14. Nd2 {[%clk 00:15:49]} {[%emt 00:01:26]} Nxd2
{[%clk 00:12:53]} {[%emt 00:01:07]} 15. Qxd2 {[%clk 00:15:52]} {[%emt
00:00:01]} Re6 {[%clk 00:11:53]} {[%emt 00:01:05]} 16. f4 {[%clk 00:14:40]}
{[%emt 00:01:18]} f6 {[%clk 00:10:30]} {[%emt 00:01:28]} 17. Bb2 {[%clk
00:14:07]} {[%emt 00:00:38]} fxe5 {[%clk 00:09:23]} {[%emt 00:01:12]} 18. Bxe5
{[%clk 00:13:26]} {[%emt 00:00:45]} c5 {[%clk 00:08:21]} {[%emt 00:01:08]} 19.
Qa5 {[%clk 00:12:33]} {[%emt 00:00:58]} Rc6 {[%clk 00:07:30]} {[%emt 00:00:56]}
20. Re3 {[%clk 00:11:39]} {[%emt 00:00:58]} Qd7 {[%clk 00:06:21]} {[%emt
00:01:14]} 21. Rg3 {[%clk 00:11:21]} {[%emt 00:00:23]} g6 {[%clk 00:06:24]}
{[%emt 00:00:03]} 22. h4 {[%clk 00:10:59]} {[%emt 00:00:27]} Re8 {[%clk
00:04:10]} {[%emt 00:02:19]} 23. Qxa7 {[%clk 00:09:03]} {[%emt 00:02:01]} d4
{[%clk 00:03:25]} {[%emt 00:00:50]} 24. Qa4 {[%clk 00:08:15]} {[%emt 00:00:52]}
Bd5 {[%clk 00:03:09]} {[%emt 00:00:22]} 25. h5 {[%clk 00:08:06]} {[%emt
00:00:13]} Ree6 {[%clk 00:02:06]} {[%emt 00:01:08]} 26. hxg6 {[%clk 00:07:42]}
{[%emt 00:00:30]} Rxg6 {[%clk 00:01:17]} {[%emt 00:00:54]} 27. Rxg6+ {[%clk
00:07:38]} {[%emt 00:00:08]} hxg6 {[%clk 00:01:21]} {[%emt 00:00:02]} 28. Qa8+
{[%clk 00:07:12]} {[%emt 00:00:31]} Kf7 {[%clk 00:01:22]} {[%emt 00:00:03]} 29.
Qh8 {[%clk 00:07:13]} {[%emt 00:00:04]} Qg4 {[%clk 00:01:17]} {[%emt 00:00:11]}
30. Qh3 {[%clk 00:06:26]} {[%emt 00:00:51]} Qe2 {[%clk 00:01:05]} {[%emt
00:00:18]} 31. Qd7+ {[%clk 00:06:14]} {[%emt 00:00:17]} 1-0

[Event "MČR juniorů a juniorek v rapid šachu 2023"]
[Site "Czech Republic"]
[Date "2023.09.23"]
[Round "2.9"]
[White "Hosova, Sandra"]
[Black "Vilimek, Vit"]
[Result "1-0"]
[TimeControl "20 min + 5 sec per move"]
[WhiteFideId "397717"]
[BlackFideId "23718218"]
[WhiteElo "1682"]
[BlackElo "1898"]

1. d4 {[%clk 00:20:08]} {[%emt 00:00:01]} Nf6 {[%clk 00:20:04]} {[%emt
00:00:02]} 2. Bf4 {[%clk 00:20:07]} {[%emt 00:00:10]} d6 {[%clk 00:20:08]}
{[%emt 00:00:02]} 3. Nc3 {[%clk 00:19:36]} {[%emt 00:00:36]} g6 {[%clk
00:20:11]} {[%emt 00:00:02]} 4. e4 {[%clk 00:19:15]} {[%emt 00:00:26]} Bg7
{[%clk 00:20:14]} 5. f3 {[%clk 00:18:58]} {[%emt 00:00:24]} Nbd7 {[%clk
00:20:15]} {[%emt 00:00:04]} 6. Qd2 {[%clk 00:18:31]} {[%emt 00:00:32]} e5
{[%clk 00:20:16]} {[%emt 00:00:05]} 7. dxe5 {[%clk 00:17:44]} {[%emt 00:00:52]}
dxe5 {[%clk 00:20:18]} {[%emt 00:00:02]} 8. Bh6 {[%clk 00:17:21]} {[%emt
00:00:28]} O-O {[%clk 00:20:14]} {[%emt 00:00:10]} 9. O-O-O {[%clk 00:16:32]}
{[%emt 00:00:53]} Qe7 {[%clk 00:19:39]} {[%emt 00:00:41]} 10. h4 {[%clk
00:15:26]} {[%emt 00:01:10]} Nc5 {[%clk 00:18:34]} {[%emt 00:01:11]} 11. h5
{[%clk 00:13:25]} {[%emt 00:02:06]} Ne6 {[%clk 00:18:08]} {[%emt 00:00:30]} 12.
Bxg7 {[%clk 00:10:56]} {[%emt 00:02:34]} Kxg7 {[%clk 00:18:12]} 13. hxg6 {[%clk
00:09:44]} {[%emt 00:01:18]} fxg6 {[%clk 00:18:15]} {[%emt 00:00:02]} 14. Nd5
{[%clk 00:07:22]} {[%emt 00:02:29]} Nxd5 {[%clk 00:18:03]} {[%emt 00:00:16]} 15.
exd5 {[%clk 00:07:26]} {[%emt 00:00:01]} Nf4 {[%clk 00:15:24]} {[%emt
00:02:44]} 16. g3 {[%clk 00:06:20]} {[%emt 00:01:11]} Nh5 {[%clk 00:15:04]}
{[%emt 00:00:24]} 17. g4 {[%clk 00:05:46]} {[%emt 00:00:39]} Nf4 {[%clk
00:14:52]} {[%emt 00:00:17]} 18. Nh3 {[%clk 00:05:36]} {[%emt 00:00:16]} Qf6
{[%clk 00:14:28]} {[%emt 00:00:29]} 19. Qc3 {[%clk 00:05:02]} {[%emt 00:00:39]}
Nxh3 {[%clk 00:12:30]} {[%emt 00:02:02]} 20. Rxh3 {[%clk 00:05:03]} {[%emt
00:00:05]} e4 {[%clk 00:11:58]} {[%emt 00:00:37]} 21. Qxc7+ {[%clk 00:04:30]}
{[%emt 00:00:38]} Rf7 {[%clk 00:11:58]} {[%emt 00:00:04]} 22. Qh2 {[%clk
00:04:33]} {[%emt 00:00:02]} Qf4+ {[%clk 00:11:55]} {[%emt 00:00:08]} 23. Qxf4
{[%clk 00:04:18]} {[%emt 00:00:19]} Rxf4 {[%clk 00:11:59]} 24. Be2 {[%clk
00:03:41]} {[%emt 00:00:43]} exf3 {[%clk 00:11:22]} {[%emt 00:00:42]} 25. Rxf3
{[%clk 00:03:21]} {[%emt 00:00:25]} Re4 {[%clk 00:09:57]} {[%emt 00:01:30]} 26.
Rf2 {[%clk 00:03:14]} {[%emt 00:00:11]} Bxg4 {[%clk 00:06:59]} {[%emt
00:03:03]} 27. Bxg4 {[%clk 00:03:16]} {[%emt 00:00:04]} Rxg4 {[%clk 00:07:04]}
28. d6 {[%clk 00:02:20]} {[%emt 00:01:01]} Rd8 {[%clk 00:06:48]} {[%emt
00:00:21]} 29. d7 {[%clk 00:01:41]} {[%emt 00:00:44]} Re4 {[%clk 00:06:52]} 30.
Rf3 {[%clk 00:00:40]} {[%emt 00:01:05]} h5 {[%clk 00:06:45]} {[%emt 00:00:13]}
31. Rc3 {[%clk 00:00:39]} {[%emt 00:00:06]} Re7 {[%clk 00:06:48]} 32. Rc7
{[%clk 00:00:40]} {[%emt 00:00:05]} b6 {[%clk 00:05:28]} {[%emt 00:01:26]} 33.
Rxa7 {[%clk 00:00:33]} {[%emt 00:00:13]} g5 {[%clk 00:05:27]} {[%emt 00:00:05]}
34. a4 {[%clk 00:00:27]} {[%emt 00:00:11]} Kg6 {[%clk 00:04:19]} {[%emt
00:01:13]} 35. a5 {[%clk 00:00:25]} {[%emt 00:00:07]} bxa5 {[%clk 00:03:58]}
{[%emt 00:00:25]} 36. c4 {[%clk 00:00:29]} h4 {[%clk 00:03:00]} {[%emt
00:01:03]} 37. c5 {[%clk 00:00:30]} {[%emt 00:00:04]} Re6 {[%clk 00:00:17]}
{[%emt 00:02:49]} 38. Rc7 {[%clk 00:00:32]} {[%emt 00:00:03]} Kf7 {[%clk
00:00:20]} {[%emt 00:00:01]} 39. Rc8 {[%clk 00:00:32]} {[%emt 00:00:05]} Ke7
{[%clk 00:00:23]} {[%emt 00:00:02]} 40. c6 {[%clk 00:00:34]} {[%emt 00:00:03]}
h3 {[%clk 00:00:19]} {[%emt 00:00:09]} 41. Rg1 {[%clk 00:00:15]} {[%emt
00:00:24]} h2 {[%clk 00:00:11]} {[%emt 00:00:13]} 42. Rh1 {[%clk 00:00:18]}
{[%emt 00:00:02]} Rh6 {[%clk 00:00:15]} 43. Kd2 {[%clk 00:00:19]} {[%emt
00:00:04]} g4 {[%clk 00:00:15]} {[%emt 00:00:06]} 44. Ke2 {[%clk 00:00:15]}
{[%emt 00:00:09]} g3 {[%clk 00:00:10]} {[%emt 00:00:10]} 45. Kf3 {[%clk
00:00:16]} {[%emt 00:00:03]} Rg6 {[%clk 00:00:14]} {[%emt 00:00:02]} 46. Kg2
{[%clk 00:00:15]} {[%emt 00:00:05]} Rgg8 {[%clk 00:00:11]} {[%emt 00:00:08]} 47.
Re1+ {[%clk 00:00:19]} Kd6 {[%clk 00:00:10]} {[%emt 00:00:06]} 48. Re8 {[%clk
00:00:17]} {[%emt 00:00:07]} Rgxe8 {[%clk 00:00:07]} {[%emt 00:00:08]} 49.
dxe8=Q {[%clk 00:00:19]} {[%emt 00:00:03]} Rxe8 {[%clk 00:00:07]} {[%emt
00:00:05]} 50. Rxe8 {[%clk 00:00:23]} {[%emt 00:00:02]} Kxc6 {[%clk 00:00:11]}
51. Rg8 {[%clk 00:00:24]} {[%emt 00:00:03]} Kb5 {[%clk 00:00:16]} 52. Rxg3
{[%emt 00:00:02]} Kb4 53. Kxh2 {[%clk 00:00:30]} {[%emt 00:00:02]} 1-0